Cogmind - Beta 13 @@@ ROGUE MODE // 2024.04.05 @ 17:13:36 Player: Fractal Result: Destroyed by 8Z-99G(R) with Subdweller Laser Performance ------------- Evolutions (0) 0 Regions Visited (3) 600 Robots Destroyed (17) 85 Value Destroyed (431) 431 Prototype IDs (0) 0 Alien Tech Used (0) 0 Bonus (0) 0 TOTAL SCORE: 1116 Bonus ------- None Cogmind --------- Core Integrity 0/250 Matter 187/300 Energy 93/100 System Corruption 2% Temperature Cool (6) Movement Core (200) Ox3 Location -10/Subcaves Parts ------- > --- POWER (1) -------- (None) > --- PROPULSION (2) --- (None) > --- UTILITY (2) ------ Small Storage Unit Improved Terrain Scanner > --- WEAPON (2) ------- Subdweller Machine Gun > --- INVENTORY (8) ---- Light Ion Engine Subdweller Optics Medium Laser Backup Laser I Grenade Launcher Peak State ------------ > --- POWER ------------ Backup Power I > --- PROPULSION ------- Wheel Subdweller Monowheel > --- UTILITY ---------- Small Storage Unit Improved Terrain Scanner > --- WEAPON ----------- Riot Gun Slug Cannon > --- INVENTORY -------- Ion Engine Light Ion Engine Medium Laser Medium Laser Backup Laser I Subdweller Machine Gun Battle Cannon Grenade Launcher [Rating: 16] Favorites ----------- Power Backup Power I Engine Backup Power I Propulsion Backup Propulsion I Wheel Wheel Hover Unit Backup Propulsion I Utility Small Storage Unit Device Improved Terrain Scanner Storage Small Storage Unit Weapon Slug Cannon Energy Gun Backup Laser I Ballistic Gun Light Assault Rifle Ballistic Cannon Slug Cannon Launcher Grenade Launcher Build | -11 -10 -10 -10 ------- Run | Yrd Mat Min Sub Slots Evolved . | . . . . Power . | . . . . Propulsion . | . . . . Utility . | . . . . Weapon . | . . . . Parts Attached 20 | 7 2 . 11 Power 3 | 1 . . 2 Engine 3 | 1 . . 2 Core . | . . . . Reactor . | . . . . Propulsion 6 | 2 1 . 3 Treads . | . . . . Leg . | . . . . Wheel 5 | 2 . . 3 Hover 1 | . 1 . . Flight . | . . . . Utility 2 | 2 . . . Device 1 | 1 . . . Storage 1 | 1 . . . Processor . | . . . . Hackware . | . . . . Protection . | . . . . Artifact . | . . . . Weapon 9 | 2 1 . 6 Energy Gun 2 | 1 . . 1 Energy Cannon . | . . . . Ballistic Gun 3 | 1 . . 2 Ballistic Cannon 2 | . . . 2 Launcher 2 | . 1 . 1 Special Weapon . | . . . . Impact Weapon . | . . . . Slashing Weapon . | . . . . Piercing Weapon . | . . . . Special Melee Weapon . | . . . . Unidentified Prototypes . | . . . . Parts Lost 9 | . . . 9 Power 2 | . . . 2 Propulsion 3 | . . . 3 Utility . | . . . . Weapon 4 | . . . 4 Highest Loss Streak 5 | . . . 5 To Critical Strikes 1 | . . . 1 Average Slot Usage (%) 88 | . 91 100 86 Engine 13 | . 11 14 13 Wheel 9 | . 13 . 9 Hover 10 | . 14 28 8 Device 14 | . 14 14 14 Storage 14 | . 14 14 14 Energy Gun 8 | . 15 14 7 Ballistic Gun 2 | . 5 . 1 Ballistic Cannon 8 | . . . 10 Launcher 5 | . 2 14 6 Naked Turns . | . . . . Heaviest Build 22 | 14 14 11 22 Greatest Support 30 | 26 26 12 30 Greatest Overweight (x) 6 | . . . 6 Average Overweight (x) . | . . . . Largest Inventory Capacity 8 | 8 8 8 8 Average Capacity 7 | 7 8 8 8 Most Carried 8 | 4 8 8 8 Average Carried 7 | 2 6 7 7 Final Capacity 8 | 8 8 8 8 Final Carried 8 | 4 8 8 5 Class Distribution -------------------- 100% | Mutant Dominant Class ---------------- Mutant | -10/Materials Mutant | -10/Mines Mutant | -10/Subcaves Resources | -11 -10 -10 -10 ----------- Run | Yrd Mat Min Sub Matter Collected 574 | 276 9 . 289 Remotely . | . . . . Salvage Created 382 | 117 51 37 177 Parts 31 | 5 4 6 16 Haulers Intercepted . | . . . . Recyclers Shooed . | . . . . Parts Field Recycled . | . . . . Retrieved Matter . | . . . . Parts Self-Destructed 4 | . . . 4 Prevented . | . . . . Kills | -11 -10 -10 -10 ------- Run | Yrd Mat Min Sub Combat Hostiles Destroyed 14 | . 5 3 6 Cannons 3 | . . . 3 AOE 11 | . 5 3 3 Classes Destroyed 5 | 2 2 . 1 Tunneler 2 | 1 . 1 . Recycler 1 | 1 . . . Swarmer 6 | . 3 3 . Grunt 2 | . 2 . . Subdweller 6 | . . . 6 Best Kill Streak 5 | 1 5 3 2 Combat Bots Only 5 | . 5 3 2 Max Kills in Single Turn 3 | 1 2 3 1 Gunslinging . | . . . . Exploded 3 | . 2 3 1 Melee . | . . . . Uniques/NPCs Destroyed . | . . . . Combat | -11 -10 -10 -10 -------- Run | Yrd Mat Min Sub Hostile Shots Fired 65 | . 11 7 47 Missed 25 | . 7 2 16 Damage Taken 1085 | . 37 52 996 Core 266 | . . 14 252 Absorbed by Shields . | . . . . Core Remaining (%) 100 | 100 . . . Volleys Fired 39 | 6 5 5 23 Largest 2 | 2 2 2 2 Hottest 98 | 70 60 60 98 Shots Fired 70 | 12 10 10 38 Gun 34 | 12 5 5 12 Cannon 20 | . . . 20 Launcher 16 | . 5 5 6 Special . | . . . . Kinetic 31 | 6 . . 25 Thermal 19 | 6 5 5 3 Explosive 15 | . 5 5 5 Electromagnetic 5 | . . . 5 Robot Hit Streak 4 | 4 . . 4 Robot Miss Streak 2 | 1 . 2 2 Penetration Max . | . . . . Secondary Targets . | . . . . Shots Hit Robots 33 | 9 . . 24 Core Hits 28 | 3 8 4 13 Critical Kills . | . . . . Critical Parts Destroyed . | . . . . Critical Strikes 1 | . . . 1 Blast 1 | . . . 1 Melee Attacks . | . . . . Impact . | . . . . Slashing . | . . . . Piercing . | . . . . Sneak Attacks . | . . . . Combat Hostiles . | . . . . Follow-up Attacks . | . . . . Damage Inflicted 1335 | 101 354 136 744 Guns 262 | 101 . 8 153 Cannons 260 | . . . 260 Explosions 813 | . 354 128 331 Melee . | . . . . Ramming . | . . . . Kinetic 450 | 39 . . 411 Thermal 270 | 62 181 8 19 Explosive 563 | . 173 128 262 Electromagnetic 52 | . . . 52 Impact . | . . . . Slashing . | . . . . Piercing . | . . . . Highest Corruption 2 | . 2 2 2 Average Corruption 2 | . 2 2 2 Corruption Purged . | . . . . Corruption Blocked . | . . . . Effects 16 | . 1 1 14 Message Errors 3 | . . . 3 Matter Fused 4 | . . 1 3 Heat Flow Errors 2 | . . . 2 Energy Discharges 3 | . 1 . 2 Data Loss (minor) 1 | . . . 1 Data Loss (major) 1 | . . . 1 Alerts 1 | . . . 1 Weapon Failures 1 | . . . 1 Overload Shots . | . . . . Overflow Damage 30 | . . 30 . Projectiles . | . . . . Explosions 30 | . . 30 . Melee . | . . . . Knockbacks 5 | . . . 5 Impact . | . . . . Kinetic 5 | . . . 5 Secondary . | . . . . Self-Inflicted Damage 52 | . . 17 35 Shots 2 | . . 1 1 Rammed . | . . . . Targets Rammed . | . . . . Kicked . | . . . . Crushed . | . . . . Highest Temperature 167 | 60 . 1 167 Average Temperature 27 | 27 . 1 83 Received Heat Transfer 123 | . 6 . 117 Siege Activations . | . . . . Robots Corrupted . | . . . . Combat Hostiles . | . . . . Parts Fried . | . . . . Impact Corruptions . | . . . . Robots Melted . | . . . . Combat Hostiles . | . . . . Parts Melted 1 | 1 . . . Heat Transferred 446 | 185 150 37 74 Parts Sabotaged . | . . . . Parts Stolen . | . . . . Parts Stripped . | . . . . Power Chain Reactions . | . . . . Alert | -11 -10 -10 -10 ------- Run | Yrd Mat Min Sub Peak Influence 224 | 10 224 197 . Initial 87 | . 6 87 . Average 47 | 4 35 179 . Maximum Alert Level 1 | . 1 . . Low Security (%) 94 | 100 89 100 . Level 1 5 | . 10 . . Level 2 . | . . . . Level 3 . | . . . . Level 4 . | . . . . Level 5 . | . . . . High Security . | . . . . Max Security . | . . . . Squads Dispatched 1 | . 1 . . Investigation . | . . . . Extermination . | . . . . Reinforcement 1 | . 1 . . Assault . | . . . . Garrison . | . . . . Intercept . | . . . . Searches Triggered . | . . . . Construction Impeded . | . . . . Haulers Reinforced . | . . . . Active Scanning Responses . | . . . . Cargo Convoy Interrupts . | . . . . Stealth | -11 -10 -10 -10 --------- Run | Yrd Mat Min Sub Distress Signals 1 | . 1 . . Communications Jammed . | . . . . Distress Signals . | . . . . Times Spotted 25 | . 6 4 15 Peak Tracking Total 4 | . 4 4 3 Tactical Retreats 4 | . 1 . 3 Traps | -11 -10 -10 -10 ------- Run | Yrd Mat Min Sub Traps Triggered 3 | . 1 . 2 Indirectly . | . . . . Trap Hack Attempts . | . . . . Triggered . | . . . . Disarmed . | . . . . Reprogrammed . | . . . . Reused . | . . . . Traps Extracted . | . . . . Installed . | . . . . Triggered . | . . . . Machines | -11 -10 -10 -10 ---------- Run | Yrd Mat Min Sub Machines Disabled 3 | . 3 . . Max in Single Turn 3 | . 3 . . Machines Repaired . | . . . . Machines Dismantled . | . . . . Machines Sabotaged . | . . . . Overloaded Fab Kills . | . . . . Hacking | -11 -10 -10 -10 --------- Run | Yrd Mat Min Sub Machines Accessed 3 | . 3 . . Terminals 2 | . 2 . . Fabricators . | . . . . Repair Stations 1 | . 1 . . Recycling Units . | . . . . Scanalyzers . | . . . . Garrison Access . | . . . . Total Hacks 4 | . 4 . . Successful 2 | . 2 . . Failed 2 | . 2 . . Catastrophic 2 | . 2 . . Database Lockouts . | . . . . Manual 2 | . 2 . . Terminals 2 | . 2 . . Fabricators . | . . . . Repair Stations 2 | . 2 . . Recycling Units . | . . . . Scanalyzers . | . . . . Garrison Access . | . . . . Terminal Hacks 1 | . 1 . . Branch Access Points 1 | . 1 . . Fabricator Hacks . | . . . . Repair Station Hacks 1 | . 1 . . Refit 1 | . 1 . . Recycling Unit Hacks . | . . . . Scanalyzer . | . . . . Garrison Access Hacks . | . . . . Unauthorized Hacks . | . . . . Terminals . | . . . . Fabricators . | . . . . Repair Stations . | . . . . Recycling Units . | . . . . Scanalyzers . | . . . . Garrison Access . | . . . . Data Cores Recovered . | . . . . Used . | . . . . Hacking Detections 2 | . 2 . . Full Trace Events 1 | . 1 . . Feedback Events . | . . . . Feedback Blocked . | . . . . Robot Schematics Acquired . | . . . . Robots Built . | . . . . Authchips . | . . . . Time . | . . . . Total Robot Build Rating . | . . . . Part Schematics Acquired . | . . . . Parts Built . | . . . . Authchips . | . . . . Time . | . . . . Total Part Build Rating . | . . . . Parts Repaired . | . . . . Time . | . . . . Parts Recycled . | . . . . Recycled Matter . | . . . . Retrieved Matter . | . . . . Retrieved Components . | . . . . Parts Scanalyzed . | . . . . Part Schematics Acquired . | . . . . Parts Damaged . | . . . . Bothacking | -11 -10 -10 -10 ------------ Run | Yrd Mat Min Sub Used RIF Installer . | . . . . Robots Hacked . | . . . . Non-combat . | . . . . Combat . | . . . . Robot Hacks Applied . | . . . . Relay Couplers Released . | . . . . Fabnet Peak Effective % . | . . . . Robots Rewired . | . . . . Allies Hacked . | . . . . Hacks Repelled . | . . . . Allies | -11 -10 -10 -10 -------- Run | Yrd Mat Min Sub Total Allies . | . . . . Largest Group . | . . . . Highest-Rated Group . | . . . . Highest-Rated Ally . | . . . . Total Orders . | . . . . Ally Attacks . | . . . . Total Damage . | . . . . Kills . | . . . . Allies Corrupted . | . . . . Allies Melted . | . . . . Intel | -11 -10 -10 -10 ------- Run | Yrd Mat Min Sub Robot Analysis Total . | . . . . Derelict Logs Recovered 1 | . . . 1 Drone Launches . | . . . . Drone Recoveries . | . . . . Exploration | -11 -10 -10 -10 ------------- Run | Yrd Mat Min Sub Turns Passed 1520 | 115 259 61 1085 Spaces Moved 1382 | 80 302 63 937 Core 67 | 5 . . 62 Treads . | . . . . Legs . | . . . . Wheels 704 | 75 105 . 524 Hover 611 | . 197 63 351 Flight . | . . . . Fastest Speed 50 | 50 65 66 66 Average Speed 96 | 87 74 66 106 Slowest Speed 350 | 90 90 66 350 Overloaded Moves . | . . . . Propulsion Burnouts . | . . . . Robots Hopped . | . . . . Cave-ins Triggered . | . . . . Exploration Rate (%) 32 | 4 49 15 61 Regions Visited 3 Branch Regions 2 Pre-discovered Areas 1 | . . . 1 Known Exits Taken 1 | . 1 . . Unknown Exits Taken 2 | 1 . 1 . Scrap Searched 6 | . . . 6 Spaces Dug . | . . . . Terrain Destroyed 82 | . 17 32 33 Melee . | . . . . Projectile 5 | . . . 5 AOE 77 | . 17 32 28 Terrain Rammed . | . . . . Walls Destroyed . | . . . . Machines Disabled . | . . . . Actions | -11 -10 -10 -10 --------- Run | Yrd Mat Min Sub Total 1499 | 110 328 72 989 Wait 32 | 14 13 3 2 Move 1379 | 79 301 62 937 Hop . | . . . . Pick Up 11 | 4 1 1 5 Fast Attach 14 | 7 1 . 6 Attach 4 | . . . 4 Detach 6 | . 4 . 2 Swap 2 | . 1 . 1 Drop 12 | . 2 1 9 Fire 39 | 6 5 5 23 Melee . | . . . . Ram . | . . . . Kick . | . . . . Crush . | . . . . Escape Stasis . | . . . . Rewire . | . . . . Trap . | . . . . Miscellaneous . | . . . . Route ------- -11/Scrapyard -10/Materials (discovered 3 exits: [*Mat] / *Min x2) -10/Mines -10/Subcaves History --------- Turn | Location | Event 6 | -11/Scrapyard | Discovered new exit (range 16) 116 | -11/Scrapyard | Entered Materials 127 | -10/Materials | Discovered new exit (range 12) 217 | -10/Materials | Discovered new exit (range 14) 273 | -10/Materials | Identified exit to Mines 300 | -10/Materials | Build established: Mutant 375 | -10/Materials | Entered Mines 390 | -10/Mines | Assembled infested the area 424 | -10/Mines | Discovered new exit (range 10) 436 | -10/Mines | Entered Subcaves 844 | -10/Subcaves | A swath of the cavern ceiling suddenly collapsed 973 | -10/Subcaves | Shifting Twisted Machinery released Sub. Power Source 978 | -10/Subcaves | Shifting Twisted Machinery released Sub. Beam Cannon 1236 | -10/Subcaves | Shifting Twisted Machinery released Piercing Trap 1511 | -10/Subcaves | Ambushed by Subdweller buried in earth 1512 | -10/Subcaves | Core integrity fell below 50% 1514 | -10/Subcaves | Core integrity fell below 20% 1517 | -10/Subcaves | Ambushed by Subdweller buried in earth 1521 | -10/Subcaves | Destroyed by 8Z-99G(R) with Subdweller Laser Last Messages --------------- Dropped Broken Sub. Power Source. System corrupted: Substantial component data lost. Triggered Shrapnel Trap. An expanding cloud of shrapnel blasts out in all directions. Triggered Shrapnel Trap. An expanding cloud of shrapnel blasts out in all directions. Battle Cannon destroyed. Slug penetrates Wall. Sub. Power Source destroyed. AC-HKA(R): "NAT20!" System corrupted: Sub. Machine Gun jammed. Sub. Monowheel destroyed. WL-S1V(R) destroyed. Critical hit (Destroy). Slug Cannon destroyed. Sub. Shrapnel Launcher destroyed. 60-XM8(R): "THANKSYOU!" Map ----- +----------------------------------------------------+ | ???????????????????????????????????????????? | | ???????????????????????????????????????????? | | ???????????????????????????????????????????? | | ???????????????????????????????????????????? | | ???????????????????????????????????????????? | | ???????????????????????????????????????????? | | ???????????????????????????????????????????? | | ???????????????????????????????????????????? | | ???????????????????????????????????????????? | | ???????????????????????????????????????????? | | ???????????????????????????????????????????? | | ???????????????????????????????????????????? | | ????????????????????# ?????????????????????? | | ???????????????????# ?????????????????????? | | ????????????????????# ##???????????????????? | | ???????????????????## ???????????????????? | | ??????????????????## ??#????????#???????? | | ?????????????????## ???????#???????????? | | ?????????????????# #??????????????????? | | ?????????????????? ;??##??????????????? | | ???????????????#??? R ## ###????????????? | | ??????????????????? #????????????? | | ????????????????????## #????????????? | | ???????????????????##R #????????????? | | ???????????#?????#?# #????????????? | | ???????????????????# @ #????????????? | | ??????????????????##; #????????????? | | ?????????????????## ; R #????????????? | | ???????????????### ; ##???????????? | | ???????????????# #????????????? | | ????????#?????## ##????????????? | | ???????????????#; ##???#?????????? | | ?????????????#?#; ;#???#??????????? | | ??????????????#; #### ###?#???????????? | | ?????????#???## ;;;######??????????#????? | | ????????????## ### ###???????????????? | | ?????????????# ##??????????????? | | ???????#?????# #??????????????? | | ?????????????## #??????????????? | | ???????######## ####??????????????? | | ????????# ##?????????????????? | | ???????# #????????#?????????? | | ??#????## ## #????????#???#?????? | | ????????## ## #### #????????#?????????? | | ?????????##?# #?## #??????????????????? | | ?????#??????## ### #??????????????????? | | ###???###???## #????????#?????????? | | # #### #??##" ####??#????????????? | | ## #?#?#" #???????????????? | | ## #???## ^ ##??????????????? | +----------------------------------------------------+ Best States ------------- Heat Dissipation 25 Energy Generation 15 Energy Capacity 250 Matter Stores 300 Matter Capacity 300 Sight Range 16 Terrain Scan Range 16 Terrain Scan Density 10 Evasion (%) 52 Item Schematics ----------------- None Robot Schematics ------------------ None Fabricated ------------ Nothing Alien Tech Used ----------------- None Achievements -------------- None Challenges ------------ None Game ------ Seed MultinovaAssembledCutter Manual? 0 Play Time 00:22:54 Cumulative 12.8 hours Start 2024.04.05 @ 16:46:41 End 2024.04.05 @ 17:13:36 Sessions 1 Manual Loads 0 Difficulty Rogue Special Mode None Game No. 18 Rogue 18 Adventurer 0 Explorer 0 Win Type - Total 0 Types 0/0/0/0/0/0/0/0/0 Lore% 16 Gallery% 15 Achievement% 13 Wizard Run 0 Options --------- Layout 1 ASCII 0 Keyboard 1 Movement Numpad Keybinds 0 Fullscreen 1 Font 48/Terminus Map View 50x35 Zoom Use 0% Tactical HUD 0 Map Filters NONE Filters NONE Steam 1 RUN: bb9f1b3f-77de-44aa-aa98-60d7037bb6a3